fUST/lending_fUST_20260526
["ID","MTS","AMOUNT","RATE_DAILY","PERIOD"]
[423030130,1779779438000,-500.0,8.948e-05,2]
[423030123,1779779438000,-500.0,8.767e-05,2]
[423030129,1779779438000,-456.7200949,8.871e-05,2]
[423030126,1779779438000,-160.0,8.854e-05,2]
[423030117,1779779438000,-500.0,8.493e-05,2]
[423030127,1779779438000,-456.7502812,8.871e-05,2]
[423030124,1779779438000,-1919.65,8.767e-05,2]
[423030118,1779779438000,-420.0,8.533e-05,2]
[423030111,1779779438000,-500.0,8.493e-05,2]
[423030112,1779779438000,-500.0,8.493e-05,2]
[423030110,1779779438000,-500.0,8.493e-05,2]
[423030113,1779779438000,-349.85756769,8.493e-05,2]
[423030119,1779779438000,-599.4868091,8.767e-05,2]
[423030122,1779779438000,-500.0,8.767e-05,2]
[423030121,1779779438000,-500.0,8.767e-05,2]
[423030114,1779779438000,-500.0,8.493e-05,2]
[423030163,1779779440000,-3423.36507919,9e-05,2]
[423030161,1779779440000,-398.6266913,7.892e-05,2]
[423030202,1779779443000,-198.85562319,8.597e-05,2]
[423030199,1779779443000,-151.5,8.597e-05,2]
[423030201,1779779443000,-151.5,8.597e-05,2]
[423030204,1779779443000,-227.822083,9e-05,2]
[423030206,1779779443000,-45088.71127128,9e-05,2]
[423030214,1779779443000,-953.87845248,9e-05,2]
[423030212,1779779443000,-304.0,9e-05,2]
[423030216,1779779443000,-471.77632926,9e-05,2]
[423030218,1779779443000,-27742.66386518,9e-05,2]
[423030249,1779779443000,-6585.51744111,9e-05,2]
[423030210,1779779443000,-6261.42227616,9e-05,2]
[423030271,1779779447000,-1253.38702262,9e-05,2]
[423030323,1779780633000,-238.0,5.929e-05,2]
[423030320,1779780633000,-300.0,5.929e-05,2]
[423030310,1779780633000,-424.98039544,5.87e-05,2]
[423030318,1779780633000,-4575.01960456,5.87e-05,2]
[423030322,1779780633000,-300.0,5.929e-05,2]
[423030326,1779780633000,-506.89611728,5.93e-05,2]
[423030321,1779780633000,-300.0,5.929e-05,2]
[423030331,1779780633000,-167.60201359,5.93e-05,2]
[423030327,1779780633000,-448.78427816,5.93e-05,2]
[423030329,1779780633000,-287.63458838,5.93e-05,2]
[423030328,1779780633000,-51.21572184,5.93e-05,2]
[423030324,1779780633000,-500.0,5.93e-05,2]
[423030330,1779780633000,-224.3767145,5.93e-05,2]
[423030325,1779780633000,-500.0,5.93e-05,2]
[423030332,1779780634000,-332.39798641,5.93e-05,2]
[423030333,1779780634000,-45.09750728,5.93e-05,2]
[423030441,1779780638000,-170.72916336,8e-05,2]
[423030439,1779780638000,-476.21825929,7.992e-05,2]
[423030433,1779780638000,-103495.55014378,7.004e-05,9]
[423030432,1779780638000,-420.0,6.522e-05,2]
[423030428,1779780638000,-250.0,6.177e-05,2]
[423030420,1779780638000,-500.0,6.177e-05,2]
[423030437,1779780638000,-237.0,7.891e-05,2]
[423030435,1779780638000,-587.0,7.174e-05,2]
[423030424,1779780638000,-500.0,6.177e-05,2]
[423030422,1779780638000,-295.68479869,6.177e-05,2]
[423030416,1779780638000,-500.0,6.177e-05,2]
[423030426,1779780638000,-500.0,6.177e-05,2]
[423030430,1779780638000,-300.0,6.181e-05,2]
[423030412,1779780638000,-500.0,6.177e-05,2]
[423030413,1779780638000,-500.0,6.177e-05,2]
[423030410,1779780638000,-500.0,6.177e-05,2]
[423030443,1779780638000,-160.0,8.217e-05,2]
[423030406,1779780638000,-403.57479601,5.992e-05,2]
[423030408,1779780638000,-203.10568,6.024e-05,2]
[423030401,1779780638000,-39.71969802,5.93e-05,2]
[423030404,1779780638000,-460.28030198,5.93e-05,2]
[423030389,1779780638000,-500.0,5.93e-05,2]
[423030397,1779780638000,-500.0,5.93e-05,2]
[423030393,1779780638000,-500.0,5.93e-05,2]
[423030395,1779780638000,-500.0,5.93e-05,2]
[423030391,1779780638000,-326.61436268,5.93e-05,2]
[423030387,1779780638000,-454.90249272,5.93e-05,2]
[423030418,1779780638000,-500.0,6.177e-05,2]
[423030399,1779780638000,-500.0,5.93e-05,2]
[423030453,1779780638000,-500.0,8.219e-05,2]
[423030445,1779780638000,-500.0,8.219e-05,2]
[423030456,1779780638000,-500.0,8.219e-05,2]
[423030489,1779780638000,-500.0,8.492e-05,2]
[423030498,1779780638000,-500.0,8.493e-05,2]
[423030497,1779780638000,-499.97,8.492e-05,2]
[423030500,1779780638000,-500.0,8.493e-05,2]
[423030504,1779780638000,-500.0,8.493e-05,2]
[423030495,1779780638000,-500.0,8.492e-05,2]
[423030493,1779780638000,-500.0,8.492e-05,2]
[423030491,1779780638000,-500.0,8.492e-05,2]
[423030487,1779780638000,-500.0,8.492e-05,2]
[423030485,1779780638000,-500.0,8.492e-05,2]
[423030483,1779780638000,-500.0,8.492e-05,2]
[423030470,1779780638000,-500.0,8.219e-05,2]
[423030477,1779780638000,-500.0,8.219e-05,2]
[423030502,1779780638000,-500.0,8.493e-05,2]
[423030476,1779780638000,-500.0,8.219e-05,2]
[423030481,1779780638000,-500.0,8.492e-05,2]
[423030449,1779780638000,-500.0,8.219e-05,2]
[423030458,1779780638000,-1727.25,8.219e-05,2]
[423030451,1779780638000,-553.66780374,8.219e-05,2]
[423030467,1779780638000,-500.0,8.219e-05,2]
[423030447,1779780638000,-500.0,8.219e-05,2]
[423030463,1779780638000,-500.0,8.219e-05,2]
[423030465,1779780638000,-500.0,8.219e-05,2]
[423030468,1779780638000,-500.0,8.219e-05,2]
[423030479,1779780638000,-500.0,8.492e-05,2]
[423030455,1779780638000,-500.0,8.219e-05,2]
[423030474,1779780638000,-582.82,8.219e-05,2]
[423030472,1779780638000,-371.8,8.219e-05,2]
[423030572,1779780639000,-1727.25,9.315e-05,2]
[423030564,1779780639000,-2203.0,9.177e-05,2]
[423030565,1779780639000,-1413.0,9.177e-05,2]
[423030567,1779780639000,-185.0,9.177e-05,2]
[423030570,1779780639000,-500.0,9.315e-05,2]
[423030569,1779780639000,-500.0,9.315e-05,2]
[423030574,1779780639000,-600.0,9.401e-05,2]
[423030579,1779780639000,-2349.25329934,9.825e-05,2]
[423030575,1779780639000,-500.0,9.589e-05,2]
[423030562,1779780639000,-500.0,9.041e-05,2]
[423030568,1779780639000,-443.0,9.177e-05,2]
[423030576,1779780639000,-500.0,9.589e-05,2]
[423030573,1779780639000,-500.0,9.315e-05,2]
[423030571,1779780639000,-313.03973343,9.315e-05,2]
[423030566,1779780639000,-648.729,9.177e-05,2]
[423030577,1779780639000,-1727.25,9.589e-05,2]
[423030580,1779780639000,-500.0,9.863e-05,2]
[423030581,1779780639000,-500.0,9.863e-05,2]
[423030591,1779780639000,-500.0,0.00010136,2]
[423030584,1779780639000,-548.86172257,9.992e-05,2]
[423030583,1779780639000,-500.0,9.863e-05,2]
[423030559,1779780639000,-500.0,9.041e-05,2]
[423030578,1779780639000,-500.0,9.589e-05,2]
[423030557,1779780639000,-373.25805352,9.041e-05,2]
[423030518,1779780639000,-500.0,8.767e-05,2]
[423030561,1779780639000,-1727.25,9.041e-05,2]
[423030506,1779780639000,-1727.25,8.493e-05,2]
[423030508,1779780639000,-500.0,8.493e-05,2]
[423030514,1779780639000,-500.0,8.767e-05,2]
[423030510,1779780639000,-1225.69919106,8.5e-05,7]
[423030512,1779780639000,-500.0,8.767e-05,2]
[423030585,1779780639000,-10046.48675023,0.0001,2]
[423030533,1779780639000,-326.065895,8.87e-05,2]
[423030535,1779780639000,-307.2358856,8.871e-05,2]
[423030531,1779780639000,-151.0,8.87e-05,2]
[423030516,1779780639000,-500.0,8.767e-05,2]
[423030519,1779780639000,-1727.25,8.767e-05,2]
[423030525,1779780639000,-1893.7902315,8.86e-05,2]
[423030523,1779780639000,-346.4132359,8.86e-05,2]
[423030537,1779780639000,-456.7200949,8.871e-05,2]
[423030521,1779780639000,-500.0,8.767e-05,2]
[423030538,1779780639000,-326.042,8.871e-05,2]
[423030543,1779780639000,-151.0,8.878e-05,2]
[423030544,1779780639000,-455.7393379,8.878e-05,2]
[423030541,1779780639000,-326.042,8.871e-05,2]
[423030549,1779780639000,-164.05576265,9e-05,2]
[423030547,1779780639000,-402132.30604675,9e-05,2]
[423030555,1779780639000,-500.0,9.041e-05,2]
[423030551,1779780639000,-2349.25329934,9e-05,2]
[423030553,1779780639000,-500.0,9.041e-05,2]
[423030592,1779780639000,-1514.86332125,0.00010145,2]
[423030529,1779780639000,-2257.0320621,8.86e-05,2]
[423030586,1779780639000,-160594.0,0.0001,2]
[423030619,1779780639000,-10046.48675023,0.000109,2]
[423030617,1779780639000,-10046.48675023,0.000107,2]
[423030618,1779780639000,-10046.48675023,0.000108,2]
[423030621,1779780639000,-500.0,0.00010958,2]
[423030622,1779780639000,-1727.25,0.00010958,2]
[423030627,1779780639000,-10046.48675023,0.00011,2]
[423030623,1779780639000,-15000.0,0.00010959,2]
[423030624,1779780639000,-200.0,0.00010959,2]
[423030625,1779780639000,-155.0,0.00010959,2]
[423030626,1779780639000,-221.62657811,0.00010959,2]
[423030628,1779780639000,-151.0,0.00011,2]
[423030629,1779780639000,-151.0,0.00011,2]
[423030631,1779780639000,-151.0,0.00011,2]
[423030633,1779780639000,-151.0,0.00011,2]
[423030635,1779780639000,-151.0,0.000111,2]
[423030636,1779780639000,-151.0,0.000111,2]
[423030637,1779780639000,-10046.48675023,0.000112,2]
[423030634,1779780639000,-151.0,0.000111,2]
[423030632,1779780639000,-151.0,0.00011,2]
[423030639,1779780639000,-151.0,0.000112,2]
[423030640,1779780639000,-151.0,0.000112,2]
[423030638,1779780639000,-151.0,0.000112,2]
[423030582,1779780639000,-1727.25,9.863e-05,2]
[423030620,1779780639000,-500.0,0.00010958,2]
[423030616,1779780639000,-1727.25,0.00010684,2]
[423030630,1779780639000,-151.0,0.00011,2]
[423030614,1779780639000,-500.0,0.00010684,2]
[423030613,1779780639000,-500.0,0.00010684,2]
[423030589,1779780639000,-500.0,0.00010136,2]
[423030588,1779780639000,-500.0,0.00010136,2]
[423030587,1779780639000,-10046.48675023,0.000101,2]
[423030590,1779780639000,-1727.25,0.00010136,2]
[423030593,1779780639000,-10046.48675023,0.000102,2]
[423030595,1779780639000,-535.89,0.00010294,2]
[423030600,1779780639000,-763.58,0.00010331,2]
[423030604,1779780639000,-500.0,0.0001041,2]
[423030598,1779780639000,-281.658,0.00010304,2]
[423030597,1779780639000,-698.39,0.00010303,2]
[423030599,1779780639000,-721.66,0.00010316,2]
[423030594,1779780639000,-528.8,0.00010289,2]
[423030603,1779780639000,-500.0,0.0001041,2]
[423030612,1779780639000,-1336.39909535,0.0001063,2]
[423030609,1779780639000,-2349.25329934,0.0001055,2]
[423030610,1779780639000,-10046.48675023,0.000106,2]
[423030607,1779780639000,-895.03883306,0.00010424,2]
[423030608,1779780639000,-10046.48675023,0.000105,2]
[423030611,1779780639000,-374.08922062,0.00010624,2]
[423030605,1779780639000,-1727.25,0.0001041,2]
[423030601,1779780639000,-720.0,0.00010341,2]
[423030596,1779780639000,-10046.48675023,0.000103,2]
[423030602,1779780639000,-10046.48675023,0.000104,2]
[423030606,1779780639000,-155.63982715,0.0001041,2]
[423030680,1779780640000,-151.0,0.000115,2]
[423030684,1779780640000,-10046.48675023,0.000116,2]
[423030682,1779780640000,-500.0,0.00011506,2]
[423030691,1779780640000,-151.0,0.000117,2]
[423030681,1779780640000,-151.0,0.000115,2]
[423030673,1779780640000,-274.53,0.00011429,7]
[423030671,1779780640000,-274.53,0.00011429,7]
[423030672,1779780640000,-274.53,0.00011429,7]
[423030667,1779780640000,-274.53,0.00011426,7]
[423030678,1779780640000,-151.0,0.000115,2]
[423030670,1779780640000,-274.53,0.00011426,7]
[423030674,1779780640000,-274.53,0.00011429,7]
[423030692,1779780640000,-151.0,0.000117,2]
[423030702,1779780640000,-151.0,0.000118,2]
[423030688,1779780640000,-500.0,0.00011691,2]
[423030683,1779780640000,-1727.25,0.00011506,2]
[423030685,1779780640000,-151.0,0.000116,2]
[423030686,1779780640000,-151.0,0.000116,2]
[423030689,1779780640000,-10046.48675023,0.000117,2]
[423030690,1779780640000,-151.0,0.000117,2]
[423030694,1779780640000,-500.0,0.00011712,2]
[423030703,1779780640000,-200.0,0.00011899,2]
[423030700,1779780640000,-151.0,0.000118,2]
[423030693,1779780640000,-500.0,0.00011712,2]
[423030701,1779780640000,-151.0,0.000118,2]
[423030677,1779780640000,-4094.14735969,0.000115,2]
[423030687,1779780640000,-151.0,0.000116,2]
[423030679,1779780640000,-151.0,0.000115,2]
[423030643,1779780640000,-1727.25,0.00011232,2]
[423030676,1779780640000,-10046.48675023,0.000115,2]
[423030642,1779780640000,-500.0,0.00011232,2]
[423030641,1779780640000,-172.84777438,0.00011232,2]
[423030696,1779780640000,-344.981876,0.0001176,2]
[423030655,1779780640000,-274.53,0.00011423,7]
[423030653,1779780640000,-151.0,0.000114,2]
[423030654,1779780640000,-274.53,0.00011423,7]
[423030646,1779780640000,-151.0,0.000113,2]
[423030644,1779780640000,-10046.48675023,0.000113,2]
[423030652,1779780640000,-151.0,0.000114,2]
[423030647,1779780640000,-151.0,0.000113,2]
[423030648,1779780640000,-2349.25329934,0.00011375,2]
[423030650,1779780640000,-10046.48675023,0.000114,2]
[423030649,1779780640000,-864.0,0.00011376,2]
[423030651,1779780640000,-151.0,0.000114,2]
[423030656,1779780640000,-274.53,0.00011423,7]
[423030658,1779780640000,-274.53,0.00011423,7]
[423030659,1779780640000,-274.53,0.00011423,7]
[423030657,1779780640000,-274.53,0.00011423,7]
[423030660,1779780640000,-274.53,0.00011423,7]
[423030661,1779780640000,-274.53,0.00011423,7]
[423030663,1779780640000,-152.0,0.00011426,7]
[423030664,1779780640000,-274.53,0.00011426,7]
[423030662,1779780640000,-274.53,0.00011423,7]
[423030665,1779780640000,-274.53,0.00011426,7]
[423030666,1779780640000,-274.53,0.00011426,7]
[423030668,1779780640000,-274.53,0.00011426,7]
[423030675,1779780640000,-2024.19653163,0.00011478,2]
[423030669,1779780640000,-274.53,0.00011426,7]
[423030704,1779780640000,-200.0,0.00011899,2]
[423030645,1779780640000,-151.0,0.000113,2]
[423030699,1779780640000,-10046.48675023,0.000118,2]
[423030735,1779780640000,-2480.43843613,0.00011995,2]
[423030738,1779780640000,-200.0,0.00011999,2]
[423030737,1779780640000,-200.0,0.00011999,2]
[423030736,1779780640000,-1056.12440837,0.00011996,2]
[423030732,1779780640000,-621.50518586,0.00011992,2]
[423030742,1779780640000,-150.96,0.00012,2]
[423030740,1779780640000,-170152.32977874,0.00012,2]
[423030741,1779780640000,-1533.22958717,0.00012,2]
[423030739,1779780640000,-10724.39568857,0.00012,2]
[423030744,1779780640000,-150.92,0.00012,2]
[423030754,1779780640000,-151.15,0.00012,2]
[423030747,1779780640000,-151.08,0.00012,2]
[423030743,1779780640000,-150.92,0.00012,2]
[423030749,1779780640000,-151.06,0.00012,2]
[423030750,1779780640000,-151.06,0.00012,2]
[423030751,1779780640000,-150.88,0.00012,2]
[423030748,1779780640000,-263.15,0.00012,2]
[423030745,1779780640000,-150.95,0.00012,2]
[423030746,1779780640000,-151.12,0.00012,2]
[423030752,1779780640000,-150.88,0.00012,2]
[423030753,1779780640000,-150.88,0.00012,2]
[423030756,1779780640000,-152.05,0.00012,2]
[423030759,1779780640000,-10046.48675023,0.00012,2]
[423030760,1779780640000,-151.3,0.00012,2]
[423030757,1779780640000,-152.04,0.00012,2]
[423030758,1779780640000,-151.3,0.00012,2]
[423030695,1779780640000,-531.07414496,0.00011712,2]
[423030733,1779780640000,-266.316178,0.00011995,2]
[423030734,1779780640000,-671.335061,0.00011995,2]
[423030755,1779780640000,-152.05,0.00012,2]
[423030726,1779780640000,-500.926741,0.0001192,2]
[423030697,1779780640000,-500.0,0.0001178,2]
[423030731,1779780640000,-255.565779,0.0001192,2]
[423030698,1779780640000,-1727.25,0.0001178,2]
[423030705,1779780640000,-200.0,0.00011899,2]
[423030707,1779780640000,-50372.5227989,0.000119,2]
[423030709,1779780640000,-550.052728,0.00011915,2]
[423030710,1779780640000,-414.638892,0.00011915,2]
[423030708,1779780640000,-151.0,0.000119,2]
[423030717,1779780640000,-576.69264,0.0001192,2]
[423030715,1779780640000,-485.946566,0.0001192,2]
[423030716,1779780640000,-469.104303,0.0001192,2]
[423030706,1779780640000,-151.0,0.000119,2]
[423030713,1779780640000,-660.350836,0.0001192,2]
[423030712,1779780640000,-186.251132,0.0001192,2]
[423030711,1779780640000,-243.538388,0.0001192,2]
[423030719,1779780640000,-328.373368,0.0001192,2]
[423030727,1779780640000,-402.150029,0.0001192,2]
[423030714,1779780640000,-642.405929,0.0001192,2]
[423030728,1779780640000,-261.886142,0.0001192,2]
[423030723,1779780640000,-368.287793,0.0001192,2]
[423030722,1779780640000,-309.12227,0.0001192,2]
[423030718,1779780640000,-431.280478,0.0001192,2]
[423030721,1779780640000,-240.449356,0.0001192,2]
[423030725,1779780640000,-622.991759,0.0001192,2]
[423030720,1779780640000,-252.294396,0.0001192,2]
[423030729,1779780640000,-229.469405,0.0001192,2]
[423030730,1779780640000,-249.307884,0.0001192,2]
[423030724,1779780640000,-426.342943,0.0001192,2]
[423030796,1779780641000,-506.970893,0.00012242,2]
[423030797,1779780641000,-420.817199,0.00012242,2]
[423030800,1779780641000,-10046.48675023,0.000123,2]
[423030795,1779780641000,-692.242496,0.00012242,2]
[423030798,1779780641000,-441.790977,0.00012242,2]
[423030794,1779780641000,-170.772409,0.00012242,2]
[423030792,1779780641000,-311.293236,0.00012242,2]
[423030790,1779780641000,-758.589871,0.00012242,2]
[423030793,1779780641000,-217.210142,0.00012242,2]
[423030803,1779780641000,-249.55515533,0.00012328,2]
[423030805,1779780641000,-5567.696215,0.00012329,2]
[423030799,1779780641000,-6886.86831898,0.00012242,2]
[423030806,1779780641000,-5567.696215,0.00012329,2]
[423030817,1779780641000,-5567.696215,0.00012329,2]
[423030807,1779780641000,-5567.696215,0.00012329,2]
[423030815,1779780641000,-5567.696215,0.00012329,2]
[423030816,1779780641000,-5567.696215,0.00012329,2]
[423030812,1779780641000,-5567.696215,0.00012329,2]
[423030809,1779780641000,-5567.696215,0.00012329,2]
[423030814,1779780641000,-5567.696215,0.00012329,2]
[423030810,1779780641000,-5567.696215,0.00012329,2]
[423030811,1779780641000,-5567.696215,0.00012329,2]
[423030808,1779780641000,-5567.696215,0.00012329,2]
[423030813,1779780641000,-5567.696215,0.00012329,2]
[423030819,1779780641000,-5567.696215,0.00012329,2]
[423030802,1779780641000,-200.0,0.00012328,2]
[423030804,1779780641000,-1727.25,0.00012328,2]
[423030801,1779780641000,-200.0,0.00012328,2]
[423030767,1779780641000,-150.92,0.00012,2]
[423030788,1779780641000,-196.545597,0.00012242,2]
[423030820,1779780641000,-5567.696215,0.00012329,2]
[423030766,1779780641000,-150.98,0.00012,2]
[423030768,1779780641000,-150.91,0.00012,2]
[423030763,1779780641000,-151.14,0.00012,2]
[423030761,1779780641000,-151.3,0.00012,2]
[423030762,1779780641000,-151.3,0.00012,2]
[423030765,1779780641000,-150.98,0.00012,2]
[423030764,1779780641000,-151.14,0.00012,2]
[423030770,1779780641000,-150.82,0.00012,2]
[423030769,1779780641000,-150.82,0.00012,2]
[423030771,1779780641000,-500.0,0.00012054,2]
[423030772,1779780641000,-1727.25,0.00012054,2]
[423030773,1779780641000,-20221.82167943,0.000121,5]
[423030791,1779780641000,-182.847461,0.00012242,2]
[423030774,1779780641000,-200.0,0.000121,2]
[423030775,1779780641000,-10046.48675023,0.000121,2]
[423030777,1779780641000,-732.22541,0.00012108,2]
[423030789,1779780641000,-424.469439,0.00012242,2]
[423030779,1779780641000,-185.0,0.00012177,2]
[423030778,1779780641000,-819.06307,0.00012113,2]
[423030780,1779780641000,-443.0,0.00012177,2]
[423030783,1779780641000,-261.697483,0.00012224,2]
[423030784,1779780641000,-294.441252,0.00012226,2]
[423030782,1779780641000,-2349.25329934,0.000122,2]
[423030787,1779780641000,-187.046069,0.00012242,2]
[423030781,1779780641000,-10046.48675023,0.000122,2]
[423030786,1779780641000,-924.051452,0.00012242,2]
[423030785,1779780641000,-826.696247,0.0001223,2]
[423030776,1779780641000,-524.310416,0.00012104,2]
[423030821,1779780641000,-5567.696215,0.00012329,2]
[423030830,1779780641000,-8842.49,0.00012329,2]
[423030823,1779780641000,-5567.696215,0.00012329,2]
[423030856,1779780641000,-500.0,0.00012457,2]
[423030858,1779780641000,-500.0,0.00012457,2]
[423030859,1779780641000,-500.0,0.00012457,2]
[423030855,1779780641000,-413.42307269,0.00012445,9]
[423030860,1779780641000,-500.0,0.00012457,2]
[423030865,1779780641000,-500.0,0.00012457,2]
[423030864,1779780641000,-500.0,0.00012457,2]
[423030862,1779780641000,-500.0,0.00012457,2]
[423030866,1779780641000,-500.0,0.00012457,2]
[423030861,1779780641000,-500.0,0.00012457,2]
[423030863,1779780641000,-500.0,0.00012457,2]
[423030868,1779780641000,-640.36,0.00012457,2]
[423030878,1779780641000,-500.0,0.00012457,2]
[423030867,1779780641000,-500.0,0.00012457,2]
[423030870,1779780641000,-500.0,0.00012457,2]
[423030873,1779780641000,-500.0,0.00012457,2]
[423030871,1779780641000,-500.0,0.00012457,2]
[423030869,1779780641000,-500.0,0.00012457,2]
[423030822,1779780641000,-5567.696215,0.00012329,2]
[423030872,1779780641000,-500.0,0.00012457,2]
[423030875,1779780641000,-500.0,0.00012457,2]
[423030877,1779780641000,-500.0,0.00012457,2]
[423030874,1779780641000,-500.0,0.00012457,2]
[423030879,1779780641000,-500.0,0.00012457,2]
[423030881,1779780641000,-500.0,0.00012457,2]
[423030880,1779780641000,-500.0,0.00012457,2]
[423030882,1779780641000,-500.0,0.00012457,2]
[423030857,1779780641000,-500.0,0.00012457,2]
[423030854,1779780641000,-150.92,0.000124,2]
[423030876,1779780641000,-500.0,0.00012457,2]
[423030853,1779780641000,-10046.48675023,0.000124,2]
[423030852,1779780641000,-160.0,0.00012371,3]
[423030818,1779780641000,-5567.696215,0.00012329,2]
[423030825,1779780641000,-21842.97,0.00012329,2]
[423030824,1779780641000,-5567.696213,0.00012329,2]
[423030826,1779780641000,-18335.79,0.00012329,2]
[423030828,1779780641000,-12733.19,0.00012329,2]
[423030829,1779780641000,-10610.99,0.00012329,2]
[423030832,1779780641000,-6140.62,0.00012329,2]
[423030831,1779780641000,-7368.74,0.00012329,2]
[423030844,1779780641000,-688.71,0.00012329,2]
[423030842,1779780641000,-991.75,0.00012329,2]
[423030843,1779780641000,-826.45,0.00012329,2]
[423030839,1779780641000,-1713.74,0.00012329,2]
[423030834,1779780641000,-4264.32,0.00012329,2]
[423030827,1779780641000,-15279.83,0.00012329,2]
[423030841,1779780641000,-1190.09,0.00012329,2]
[423030851,1779780641000,-192.21,0.00012329,2]
[423030840,1779780641000,-1428.11,0.00012329,2]
[423030850,1779780641000,-230.65,0.00012329,2]
[423030849,1779780641000,-276.78,0.00012329,2]
[423030848,1779780641000,-332.13,0.00012329,2]
[423030847,1779780641000,-398.56,0.00012329,2]
[423030846,1779780641000,-478.27,0.00012329,2]
[423030836,1779780641000,-2961.33,0.00012329,2]
[423030838,1779780641000,-2056.48,0.00012329,2]
[423030833,1779780641000,-5117.18,0.00012329,2]
[423030835,1779780641000,-3553.6,0.00012329,2]
[423030837,1779780641000,-2467.78,0.00012329,2]
[423030845,1779780641000,-573.93,0.00012329,2]
[423030906,1779780642000,-150.92,0.000128,2]
[423030907,1779780642000,-354.16230743,0.000128,7]
[423030908,1779780642000,-160.0,0.00012822,6]
[423030913,1779780642000,-2415.86257919,0.00012884,2]
[423030909,1779780642000,-804.64543545,0.00012833,2]
[423030911,1779780642000,-354.16230743,0.00012873,7]
[423030912,1779780642000,-1727.25,0.00012876,2]
[423030910,1779780642000,-354.16230743,0.00012837,7]
[423030916,1779780642000,-824.0,0.00012893,2]
[423030920,1779780642000,-824.0,0.00012893,2]
[423030917,1779780642000,-824.0,0.00012893,2]
[423030915,1779780642000,-824.0,0.00012893,2]
[423030918,1779780642000,-824.0,0.00012893,2]
[423030921,1779780642000,-824.0,0.00012893,2]
[423030922,1779780642000,-824.0,0.00012893,2]
[423030923,1779780642000,-824.0,0.00012893,2]
[423030929,1779780642000,-824.0,0.00012893,2]
[423030901,1779780642000,-10046.48675023,0.000127,2]
[423030914,1779780642000,-200.0,0.00012892,2]
[423030900,1779780642000,-354.16230743,0.0001269,2]
[423030888,1779780642000,-1000.0,0.00012513,2]
[423030902,1779780642000,-354.16230743,0.00012727,7]
[423030925,1779780642000,-824.0,0.00012893,2]
[423030884,1779780642000,-176.54,0.00012457,2]
[423030885,1779780642000,-200.0,0.00012499,2]
[423030883,1779780642000,-500.0,0.00012457,2]
[423030886,1779780642000,-11802.67749285,0.000125,2]
[423030887,1779780642000,-18100.1179162,0.000125,2]
[423030890,1779780642000,-151.12,0.000126,2]
[423030892,1779780642000,-1727.25,0.00012602,2]
[423030891,1779780642000,-10046.48675023,0.000126,2]
[423030889,1779780642000,-160.0,0.00012521,4]
[423030894,1779780642000,-354.16230743,0.00012617,2]
[423030904,1779780642000,-203.92521394,0.00012769,7]
[423030905,1779780642000,-10046.48675023,0.000128,2]
[423030893,1779780642000,-203.92521394,0.00012617,2]
[423030897,1779780642000,-354.16230743,0.00012654,2]
[423030895,1779780642000,-2415.86257919,0.00012622,2]
[423030899,1779780642000,-5159.25320342,0.00012688,2]
[423030896,1779780642000,-2415.86257919,0.00012652,2]
[423030898,1779780642000,-160.0,0.00012672,5]
[423030903,1779780642000,-354.16230743,0.00012763,7]
[423030924,1779780642000,-824.0,0.00012893,2]
[423030944,1779780642000,-824.0,0.00012893,2]
[423030919,1779780642000,-824.0,0.00012893,2]
[423030957,1779780642000,-354.16230743,0.00012983,14]
[423030953,1779780642000,-203.92521394,0.00012921,7]